fUST/lending_fUST_20250627
["ID","MTS","AMOUNT","RATE_DAILY","PERIOD"]
[368039127,1751002253176,-460.0,0.00020547,2]
[368039128,1751002253185,-460.0,0.00020547,2]
[368039129,1751002253195,-460.0,0.00020547,2]
[368039130,1751002253204,-1286.96,0.00020547,2]
[368039131,1751002253214,-681.06,0.00020547,2]
[368039132,1751002253223,-460.0,0.00020547,2]
[368039133,1751002253237,-875.84,0.00020547,2]
[368039134,1751002253246,-460.0,0.00020547,2]
[368039135,1751002253255,-5787.19,0.00020547,2]
[368039136,1751002253265,-2340.09,0.00020547,2]
[368039137,1751002253274,-151.0,0.00020547,2]
[368039138,1751002253284,-151.0,0.00020547,2]
[368039139,1751002253293,-1243.39,0.00020547,2]
[368039140,1751002253303,-678.37,0.00020547,2]
[368039141,1751002253312,-151.0,0.00020547,2]
[368039142,1751002253322,-463.66,0.00020547,2]
[368039143,1751002253342,-2750.13,0.00020547,2]
[368039144,1751002253353,-460.0,0.00020547,2]
[368039145,1751002253364,-460.0,0.00020547,2]
[368039146,1751002253374,-480.43,0.00020547,2]
[368039147,1751002253384,-460.0,0.00020547,2]
[368039148,1751002253393,-596.35,0.00020547,2]
[368039149,1751002253404,-522.52,0.00020547,2]
[368039150,1751002253414,-871.05,0.00020547,2]
[368039151,1751002253426,-151.0,0.00020547,2]
[368039152,1751002253437,-460.0,0.00020547,2]
[368039153,1751002253447,-2533.04,0.00020547,2]
[368039154,1751002253457,-151.0,0.00020547,2]
[368039155,1751002253468,-559.24,0.00020547,2]
[368039156,1751002253477,-245.065136,0.00020547,2]
[368039157,1751002253488,-1363.56,0.00020547,2]
[368039158,1751002253498,-547.18,0.00020547,2]
[368039159,1751002253508,-151.0,0.00020547,2]
[368039160,1751002253518,-1668.16,0.00020547,2]
[368039161,1751002253528,-151.0,0.00020547,2]
[368039162,1751002253538,-151.0,0.00020547,2]
[368039163,1751002253548,-151.0,0.00020547,2]
[368039164,1751002253558,-460.0,0.00020547,2]
[368039165,1751002253567,-1146.19,0.00020547,2]
[368039166,1751002253578,-702.62,0.00020547,2]
[368039167,1751002253587,-151.0,0.00020547,2]
[368039168,1751002253598,-151.0,0.00020547,2]
[368039169,1751002253608,-926.59,0.00020547,2]
[368039170,1751002253618,-151.0,0.00020547,2]
[368039171,1751002253628,-151.0,0.00020547,2]
[368039172,1751002253637,-716.79,0.00020547,2]
[368039173,1751002253648,-981.69,0.00020547,2]
[368039174,1751002253658,-524.17,0.00020547,2]
[368039175,1751002253668,-151.0,0.00020547,2]
[368039176,1751002253677,-460.0,0.00020547,2]
[368039177,1751002253687,-480.17,0.00020547,2]
[368039178,1751002253699,-151.0,0.00020547,2]
[368039179,1751002253709,-7486.99,0.00020547,2]
[368039180,1751002253719,-151.0,0.00020547,2]
[368039181,1751002253729,-775.79,0.00020547,2]
[368039182,1751002253739,-3201.74,0.00020547,2]
[368039183,1751002253748,-460.0,0.00020547,2]
[368039184,1751002253758,-517.34,0.00020547,2]
[368039185,1751002253767,-460.0,0.00020547,2]
[368039186,1751002253777,-151.0,0.00020547,2]
[368039187,1751002253787,-460.0,0.00020547,2]
[368039188,1751002253796,-1011.71,0.00020547,2]
[368039189,1751002253806,-846.4,0.00020547,2]
[368039190,1751002253815,-528.27,0.00020547,2]
[368039191,1751002253825,-460.0,0.00020547,2]
[368039192,1751002253835,-460.0,0.00020547,2]
[368039193,1751002253844,-460.0,0.00020547,2]
[368039194,1751002253854,-3240.37,0.00020547,2]
[368039195,1751002253864,-2430.81,0.00020547,2]
[368039196,1751002253874,-1648.11,0.00020547,2]
[368039197,1751002253884,-188.68,0.00020547,2]
[368039198,1751002253896,-151.0,0.00020547,2]
[368039199,1751002253906,-412.62592919,0.00020547,2]
[368039200,1751002253915,-255.82,0.00020547,2]
[368039201,1751002253925,-332.28,0.00020547,2]
[368039202,1751002253935,-151.0,0.00020547,2]
[368039203,1751002253944,-460.0,0.00020547,2]
[368039204,1751002253958,-460.0,0.00020547,2]
[368039205,1751002253969,-151.0,0.00020547,2]
[368039206,1751002253979,-151.0,0.00020547,2]
[368039207,1751002253988,-460.0,0.00020547,2]
[368039208,1751002253998,-151.0,0.00020547,2]
[368039209,1751002254007,-460.0,0.00020547,2]
[368039210,1751002254017,-460.0,0.00020547,2]
[368039211,1751002254027,-1853.89,0.00020547,2]
[368039212,1751002254036,-1791.13,0.00020547,2]
[368039213,1751002254046,-460.0,0.00020547,2]
[368039214,1751002254056,-151.0,0.00020547,2]
[368039215,1751002254066,-151.0,0.00020547,2]
[368039216,1751002254076,-871.79,0.00020547,2]
[368039217,1751002254085,-151.0,0.00020547,2]
[368039218,1751002254096,-460.0,0.00020547,2]
[368039219,1751002254106,-917.52,0.00020547,2]
[368039220,1751002254130,-151.0,0.00020547,2]
[368039221,1751002254148,-1833.19,0.00020547,2]
[368039222,1751002254161,-707.09,0.00020547,2]
[368039223,1751002254178,-460.0,0.00020547,2]
[368039224,1751002254194,-460.0,0.00020547,2]
[368039225,1751002254209,-5000.0,0.00020586,2]
[368039226,1751002254227,-25000.0,0.00020586,2]
[368039227,1751002254243,-151.0,0.00020586,2]
[368039228,1751002254258,-151.0,0.00020586,2]
[368039229,1751002254272,-213.114312,0.00020586,2]
[368039230,1751002254290,-213.114312,0.00020586,2]
[368039231,1751002254304,-151.0,0.00020586,2]
[368039232,1751002254320,-206.173734,0.00020586,2]
[368039233,1751002254333,-206.173734,0.00020586,2]
[368039234,1751002254344,-5580.82,0.000206,2]
[368039235,1751002254357,-420.0,0.00020602,2]
[368039236,1751002254370,-151.0,0.000207,3]
[368039237,1751002254386,-243.0,0.00020702,2]
[368039238,1751002254400,-619.39198839,0.00020721,2]
[368039239,1751002254416,-8370.50534325,0.00020728,3]
[368039240,1751002254432,-1500.0,0.00020771,2]
[368039241,1751002254444,-460.0,0.00020821,2]
[368039242,1751002254456,-460.0,0.00020821,2]
[368039243,1751002254467,-460.0,0.00020821,2]
[368039244,1751002254483,-460.0,0.00020821,2]
[368039245,1751002254498,-460.0,0.00020821,2]
[368039246,1751002254509,-863.04,0.00020821,2]
[368039247,1751002254523,-460.0,0.00020821,2]
[368039248,1751002254538,-460.0,0.00020821,2]
[368039249,1751002254550,-1007.46,0.00020821,2]
[368039250,1751002254564,-460.0,0.00020821,2]
[368039251,1751002254578,-460.0,0.00020821,2]
[368039252,1751002254595,-264.6,0.00020821,2]
[368039253,1751002254609,-460.0,0.00020821,2]
[368039254,1751002254626,-460.0,0.00020821,2]
[368039255,1751002254640,-151.0,0.00020821,2]
[368039256,1751002254654,-151.0,0.00020821,2]
[368039257,1751002254667,-629.65,0.00020821,2]
[368039258,1751002254680,-460.0,0.00020821,2]
[368039259,1751002254693,-563.01370455,0.00020821,2]
[368039260,1751002254707,-295.306328,0.00020821,2]
[368039261,1751002254719,-151.0,0.00020821,2]
[368039262,1751002254733,-295.306328,0.00020821,2]
[368039263,1751002254745,-460.0,0.00020821,2]
[368039264,1751002254759,-151.0,0.00020821,2]
[368039265,1751002254771,-152.369318,0.00020821,2]
[368039266,1751002254783,-460.0,0.00020821,2]
[368039267,1751002254795,-151.0,0.00020821,2]
[368039268,1751002254807,-460.0,0.00020821,2]
[368039269,1751002254819,-460.0,0.00020821,2]
[368039270,1751002254831,-460.0,0.00020821,2]
[368039271,1751002254843,-460.0,0.00020821,2]
[368039272,1751002254855,-460.0,0.00020821,2]
[368039273,1751002254867,-151.0,0.00020821,2]
[368039274,1751002254878,-151.0,0.00020821,2]
[368039275,1751002254890,-460.0,0.00020821,2]
[368039276,1751002254902,-177.404718,0.00020821,2]
[368039277,1751002254915,-336.86,0.00020821,2]
[368039278,1751002254926,-151.0,0.00020821,2]
[368039279,1751002254939,-177.404718,0.00020821,2]
[368039280,1751002254951,-701.78,0.00020821,2]
[368039281,1751002254968,-152.798571,0.00020821,2]
[368039282,1751002254978,-460.0,0.00020821,2]
[368039283,1751002254987,-460.0,0.00020821,2]
[368039284,1751002254995,-530.26031473,0.00020821,2]
[368039285,1751002255005,-460.0,0.00020821,2]
[368039286,1751002255015,-1087.18,0.00020821,2]
[368039287,1751002255024,-460.0,0.00020821,2]
[368039288,1751002255035,-312.83649756,0.00020821,2]
[368039289,1751002255045,-255.425041,0.00020821,2]
[368039290,1751002255056,-255.425041,0.00020821,2]
[368039291,1751002255065,-454.68,0.00020821,2]
[368039292,1751002255075,-1089.59,0.00020821,2]
[368039293,1751002255084,-895.257111,0.00020821,2]
[368039294,1751002255093,-2802.28,0.00020821,2]
[368039295,1751002255103,-460.0,0.00020821,2]
[368039296,1751002255113,-895.257111,0.00020821,2]
[368039297,1751002255123,-468.57303576,0.00020821,2]
[368039298,1751002255133,-544.83,0.00020821,2]
[368039299,1751002255143,-1912.87,0.00020821,2]
[368039300,1751002255152,-460.0,0.00020821,2]
[368039301,1751002255161,-649.93,0.00020821,2]
[368039302,1751002255171,-475.68,0.00020821,2]
[368039303,1751002255181,-460.0,0.00020821,2]
[368039304,1751002255190,-460.0,0.00020821,2]
[368039305,1751002255200,-460.0,0.00020821,2]
[368039306,1751002255210,-460.0,0.00020821,2]
[368039307,1751002255219,-460.0,0.00020821,2]
[368039308,1751002255229,-1286.96,0.00020821,2]
[368039309,1751002255244,-681.06,0.00020821,2]
[368039310,1751002255259,-460.0,0.00020821,2]
[368039311,1751002255268,-875.84,0.00020821,2]
[368039312,1751002255278,-460.0,0.00020821,2]
[368039313,1751002255288,-5787.19,0.00020821,2]
[368039314,1751002255298,-2340.09,0.00020821,2]
[368039315,1751002255308,-1243.39,0.00020821,2]
[368039316,1751002255318,-678.37,0.00020821,2]
[368039317,1751002255329,-2750.13,0.00020821,2]
[368039318,1751002255338,-460.0,0.00020821,2]
[368039319,1751002255621,-460.0,0.00020821,2]
[368039320,1751002255638,-480.43,0.00020821,2]
[368039321,1751002255647,-460.0,0.00020821,2]
[368039322,1751002255656,-596.35,0.00020821,2]
[368039323,1751002255666,-522.52,0.00020821,2]
[368039324,1751002255677,-871.05,0.00020821,2]
[368039325,1751002255687,-1455.972287,0.00020821,2]
[368039326,1751002255696,-460.0,0.00020821,2]
[368039327,1751002255706,-1455.972287,0.00020821,2]
[368039328,1751002255716,-2533.04,0.00020821,2]
[368039329,1751002255725,-559.24,0.00020821,2]
[368039330,1751002255735,-1363.56,0.00020821,2]
[368039331,1751002255745,-547.18,0.00020821,2]
[368039332,1751002255754,-1668.16,0.00020821,2]
[368039333,1751002255763,-460.0,0.00020821,2]
[368039334,1751002255774,-1146.19,0.00020821,2]
[368039335,1751002255784,-702.62,0.00020821,2]
[368039336,1751002255793,-926.59,0.00020821,2]
[368039337,1751002255803,-716.79,0.00020821,2]
[368039338,1751002255812,-981.69,0.00020821,2]
[368039339,1751002255821,-524.17,0.00020821,2]
[368039340,1751002255830,-326.5,0.00020821,2]
[368039341,1751002255840,-480.17,0.00020821,2]
[368039342,1751002255849,-7486.99,0.00020821,2]
[368039343,1751002255859,-775.79,0.00020821,2]
[368039344,1751002255868,-3201.74,0.00020821,2]
[368039345,1751002255877,-460.0,0.00020821,2]
[368039346,1751002255886,-517.34,0.00020821,2]
[368039347,1751002255896,-460.0,0.00020821,2]
[368039348,1751002255906,-281.88272818,0.00020821,2]
[368039349,1751002255915,-1011.71,0.00020821,2]
[368039350,1751002255924,-846.4,0.00020821,2]
[368039351,1751002255933,-528.27,0.00020821,2]
[368039352,1751002255943,-460.0,0.00020821,2]
[368039353,1751002255953,-460.0,0.00020821,2]
[368039354,1751002255967,-460.0,0.00020821,2]
[368039355,1751002255976,-3240.37,0.00020821,2]
[368039356,1751002255985,-2430.81,0.00020821,2]
[368039357,1751002255994,-1648.11,0.00020821,2]
[368039358,1751002256003,-460.0,0.00020821,2]
[368039359,1751002256012,-460.0,0.00020821,2]
[368039360,1751002256021,-460.0,0.00020821,2]
[368039361,1751002256031,-460.0,0.00020821,2]
[368039362,1751002256039,-460.0,0.00020821,2]
[368039363,1751002256049,-1853.89,0.00020821,2]
[368039364,1751002256059,-1791.13,0.00020821,2]
[368039365,1751002256068,-460.0,0.00020821,2]
[368039366,1751002256078,-871.79,0.00020821,2]
[368039367,1751002256087,-460.0,0.00020821,2]
[368039368,1751002256096,-917.52,0.00020821,2]
[368039369,1751002256106,-1833.19,0.00020821,2]
[368039370,1751002256115,-707.09,0.00020821,2]
[368039371,1751002256125,-460.0,0.00020821,2]
[368039372,1751002256134,-460.0,0.00020821,2]
[368039373,1751002256143,-500.0,0.0002084,2]
[368039374,1751002256153,-347.0,0.00020888,2]
[368039375,1751002256163,-2108.73060914,0.00020894,2]
[368039376,1751002256172,-151.0,0.000209,3]
[368039377,1751002256182,-8370.50534325,0.00020934,4]
[368039378,1751002256191,-160.0,0.00021,6]
[368039379,1751002256201,-160.0,0.00021,5]
[368039380,1751002256211,-160.0,0.00021,5]
[368039381,1751002256220,-161.67740917,0.00021,4]
[368039382,1751002256229,-460.0,0.00021095,2]
[368039383,1751002256239,-460.0,0.00021095,2]
[368039384,1751002256248,-460.0,0.00021095,2]
[368039385,1751002256257,-460.0,0.00021095,2]
[368039386,1751002256267,-460.0,0.00021095,2]
[368039387,1751002256276,-863.04,0.00021095,2]
[368039388,1751002256285,-460.0,0.00021095,2]
[368039389,1751002256295,-151.0,0.00021095,2]
[368039390,1751002256304,-460.0,0.00021095,2]
[368039391,1751002256313,-1007.46,0.00021095,2]
[368039392,1751002256322,-151.0,0.00021095,2]
[368039393,1751002256332,-151.0,0.00021095,2]
[368039394,1751002256341,-460.0,0.00021095,2]
[368039395,1751002256351,-151.0,0.00021095,2]
[368039396,1751002256360,-151.0,0.00021095,2]
[368039397,1751002256370,-151.0,0.00021095,2]
[368039398,1751002256379,-460.0,0.00021095,2]
[368039399,1751002256388,-460.0,0.00021095,2]
[368039400,1751002256398,-151.0,0.00021095,2]
[368039401,1751002256406,-582.281415,0.00021095,2]
[368039402,1751002256416,-460.0,0.00021095,2]
[368039403,1751002256425,-582.281415,0.00021095,2]
[368039404,1751002256434,-151.546194,0.00021095,2]
[368039405,1751002256443,-629.65,0.00021095,2]
[368039406,1751002256452,-460.0,0.00021095,2]
[368039407,1751002256462,-460.0,0.00021095,2]
[368039408,1751002256471,-460.0,0.00021095,2]
[368039409,1751002256480,-460.0,0.00021095,2]
[368039410,1751002256490,-163.67,0.00021095,2]
[368039411,1751002256499,-460.0,0.00021095,2]
[368039412,1751002256508,-460.0,0.00021095,2]
[368039413,1751002256518,-460.0,0.00021095,2]
[368039414,1751002256527,-460.0,0.00021095,2]
[368039415,1751002256537,-701.78,0.00021095,2]
[368039416,1751002256546,-460.0,0.00021095,2]
[368039417,1751002256555,-460.0,0.00021095,2]
[368039418,1751002256565,-460.0,0.00021095,2]
[368039419,1751002256574,-1087.18,0.00021095,2]
[368039420,1751002256583,-460.0,0.00021095,2]
[368039421,1751002256593,-1089.59,0.00021095,2]
[368039422,1751002256603,-2802.28,0.00021095,2]
[368039423,1751002256612,-460.0,0.00021095,2]
[368039424,1751002256621,-151.0,0.00021095,2]
[368039425,1751002256631,-544.83,0.00021095,2]
[368039426,1751002256640,-1912.87,0.00021095,2]
[368039427,1751002256649,-460.0,0.00021095,2]
[368039428,1751002256659,-649.93,0.00021095,2]
[368039429,1751002256669,-475.68,0.00021095,2]
[368039430,1751002256678,-460.0,0.00021095,2]
[368039431,1751002256687,-460.0,0.00021095,2]
[368039432,1751002256697,-460.0,0.00021095,2]
[368039433,1751002256706,-460.0,0.00021095,2]
[368039434,1751002256716,-460.0,0.00021095,2]
[368039435,1751002256725,-1286.96,0.00021095,2]
[368039436,1751002256735,-681.06,0.00021095,2]
[368039437,1751002256744,-460.0,0.00021095,2]
[368039438,1751002256753,-875.84,0.00021095,2]
[368039439,1751002256763,-460.0,0.00021095,2]
[368039440,1751002256772,-5787.19,0.00021095,2]
[368039441,1751002256781,-2340.09,0.00021095,2]
[368039442,1751002256791,-151.0,0.00021095,2]
[368039443,1751002256800,-151.0,0.00021095,2]
[368039444,1751002256809,-1243.39,0.00021095,2]
[368039445,1751002256819,-678.37,0.00021095,2]
[368039446,1751002256828,-151.0,0.00021095,2]
[368039447,1751002256838,-2750.13,0.00021095,2]
[368039448,1751002256847,-460.0,0.00021095,2]
[368039449,1751002256857,-480.43,0.00021095,2]
[368039450,1751002256866,-460.0,0.00021095,2]
[368039451,1751002256875,-460.0,0.00021095,2]
[368039452,1751002256885,-596.35,0.00021095,2]
[368039453,1751002256895,-522.52,0.00021095,2]
[368039454,1751002256904,-871.05,0.00021095,2]
[368039455,1751002256913,-154.393851,0.00021095,2]
[368039456,1751002256923,-460.0,0.00021095,2]
[368039457,1751002256932,-2533.04,0.00021095,2]
[368039458,1751002256941,-151.0,0.00021095,2]
[368039459,1751002256950,-559.24,0.00021095,2]
[368039460,1751002256962,-1363.56,0.00021095,2]
[368039461,1751002256973,-547.18,0.00021095,2]
[368039462,1751002256982,-151.0,0.00021095,2]
[368039463,1751002256991,-1668.16,0.00021095,2]
[368039464,1751002257002,-151.0,0.00021095,2]
[368039465,1751002257011,-151.0,0.00021095,2]
[368039466,1751002257021,-151.0,0.00021095,2]
[368039467,1751002257031,-460.0,0.00021095,2]
[368039468,1751002257042,-1146.19,0.00021095,2]
[368039469,1751002257053,-702.62,0.00021095,2]
[368039470,1751002257062,-151.0,0.00021095,2]
[368039471,1751002257072,-151.0,0.00021095,2]
[368039472,1751002257081,-926.59,0.00021095,2]
[368039473,1751002257090,-151.0,0.00021095,2]
[368039474,1751002257099,-151.0,0.00021095,2]
[368039475,1751002257109,-716.79,0.00021095,2]
[368039476,1751002257118,-981.69,0.00021095,2]
[368039477,1751002257128,-524.17,0.00021095,2]
[368039478,1751002257138,-151.0,0.00021095,2]
[368039479,1751002257147,-480.17,0.00021095,2]
[368039480,1751002257157,-151.0,0.00021095,2]
[368039481,1751002257166,-7486.99,0.00021095,2]
[368039482,1751002257175,-151.0,0.00021095,2]
[368039483,1751002257185,-775.79,0.00021095,2]
[368039484,1751002257194,-3201.74,0.00021095,2]
[368039485,1751002257203,-460.0,0.00021095,2]
[368039486,1751002257213,-517.34,0.00021095,2]
[368039487,1751002257222,-460.0,0.00021095,2]
[368039488,1751002257231,-151.0,0.00021095,2]
[368039489,1751002257241,-1011.71,0.00021095,2]
[368039490,1751002257250,-846.4,0.00021095,2]
[368039491,1751002257259,-528.27,0.00021095,2]
[368039492,1751002257268,-460.0,0.00021095,2]
[368039493,1751002257277,-492.17239588,0.00021095,2]
[368039494,1751002257286,-460.0,0.00021095,2]
[368039495,1751002257296,-3240.37,0.00021095,2]
[368039496,1751002257305,-2430.81,0.00021095,2]
[368039497,1751002257315,-1648.11,0.00021095,2]
[368039498,1751002257324,-151.0,0.00021095,2]
[368039499,1751002257333,-151.0,0.00021095,2]
[368039500,1751002257342,-460.0,0.00021095,2]
[368039501,1751002257352,-151.0,0.00021095,2]
[368039502,1751002257361,-166.46,0.00021095,2]
[368039503,1751002257371,-151.0,0.00021095,2]
[368039504,1751002257380,-460.0,0.00021095,2]
[368039505,1751002257390,-151.0,0.00021095,2]
[368039506,1751002257400,-460.0,0.00021095,2]
[368039507,1751002257409,-397.38,0.00021095,2]
[368039508,1751002257419,-1853.89,0.00021095,2]
[368039509,1751002257428,-1791.13,0.00021095,2]
[368039510,1751002257438,-460.0,0.00021095,2]
[368039511,1751002257447,-228.475322,0.00021095,2]
[368039512,1751002257457,-151.0,0.00021095,2]
[368039513,1751002257467,-871.79,0.00021095,2]
[368039514,1751002257476,-151.0,0.00021095,2]
[368039515,1751002257486,-460.0,0.00021095,2]
[368039516,1751002257495,-917.52,0.00021095,2]
[368039517,1751002257505,-1833.19,0.00021095,2]
[368039518,1751002257514,-707.09,0.00021095,2]
[368039519,1751002257524,-460.0,0.00021095,2]
[368039520,1751002257533,-460.0,0.00021095,2]
[368039521,1751002257543,-151.0,0.000211,3]
[368039522,1751002257552,-177.4788171,0.00021123,2]
[368039523,1751002257561,-153.0,0.00021123,2]
[368039524,1751002257571,-575.118961,0.00021123,2]
[368039525,1751002257580,-159.2394861,0.00021123,2]
[368039526,1751002257589,-575.118961,0.00021123,2]
[368039527,1751002257599,-177.4788171,0.00021123,2]
[368039528,1751002257608,-159.2394861,0.00021123,2]
[368039529,1751002257618,-159.2394861,0.00021123,2]
[368039530,1751002257627,-176.9019081,0.00021123,2]
[368039531,1751002257636,-1156.4514895,0.00021123,2]
[368039532,1751002257646,-159.2394861,0.00021123,2]
[368039533,1751002257656,-159.2394861,0.00021123,2]
[368039534,1751002257665,-159.2394861,0.00021123,2]
[368039535,1751002257674,-159.2394861,0.00021123,2]
[368039536,1751002257683,-159.2394861,0.00021123,2]
[368039537,1751002257693,-5000.0,0.00021134,2]
[368039538,1751002257703,-25000.0,0.00021134,2]
[368039539,1751002257712,-2108.73060914,0.00021136,2]
[368039540,1751002257721,-8370.50534325,0.00021141,4]
[368039541,1751002257731,-1100.074,0.00021196,2]
[368039542,1751002257740,-177.901,0.00021196,2]
[368039543,1751002257749,-152.868998,0.00021196,2]
[368039544,1751002257758,-151.0,0.00021196,2]
[368039545,1751002257767,-213.114312,0.00021196,2]
[368039546,1751002257777,-213.114312,0.00021196,2]
[368039547,1751002257786,-151.0,0.00021196,2]
[368039548,1751002257795,-206.173734,0.00021196,2]
[368039549,1751002257804,-206.173734,0.00021196,2]
[368039550,1751002257814,-160.0,0.000213,6]
[368039551,1751002257823,-160.0,0.000213,6]
[368039552,1751002257832,-2000.0,0.00021319,2]
[368039553,1751002257841,-8370.50534325,0.00021348,5]
[368039554,1751002257850,-460.0,0.00021369,2]
[368039555,1751002257859,-460.0,0.00021369,2]
[368039556,1751002257868,-460.0,0.00021369,2]
[368039557,1751002257877,-460.0,0.00021369,2]
[368039558,1751002257886,-460.0,0.00021369,2]
[368039559,1751002257896,-863.04,0.00021369,2]
[368039560,1751002257905,-460.0,0.00021369,2]
[368039561,1751002257914,-460.0,0.00021369,2]
[368039562,1751002257924,-1007.46,0.00021369,2]
[368039563,1751002257933,-460.0,0.00021369,2]
[368039564,1751002257943,-460.0,0.00021369,2]
[368039565,1751002257952,-460.0,0.00021369,2]
[368039566,1751002257965,-460.0,0.00021369,2]
[368039567,1751002257974,-629.65,0.00021369,2]
[368039568,1751002257984,-460.0,0.00021369,2]
[368039569,1751002257993,-266.65,0.00021369,2]
[368039570,1751002258002,-460.0,0.00021369,2]
[368039571,1751002258011,-151.426862,0.00021369,2]
[368039572,1751002258021,-463.24,0.00021369,2]
[368039573,1751002258030,-460.0,0.00021369,2]
[368039574,1751002258040,-460.0,0.00021369,2]
[368039575,1751002258049,-460.0,0.00021369,2]
[368039576,1751002258058,-151.0,0.00021369,2]
[368039577,1751002258067,-250.012793,0.00021369,2]
[368039578,1751002258077,-460.0,0.00021369,2]
[368039579,1751002258086,-177.404718,0.00021369,2]
[368039580,1751002258095,-151.0,0.00021369,2]
[368039581,1751002258104,-177.404718,0.00021369,2]
[368039582,1751002258114,-701.78,0.00021369,2]
[368039583,1751002258123,-460.0,0.00021369,2]
[368039584,1751002258131,-460.0,0.00021369,2]
[368039585,1751002258141,-460.0,0.00021369,2]
[368039586,1751002258150,-1087.18,0.00021369,2]
[368039587,1751002258160,-460.0,0.00021369,2]
[368039588,1751002258169,-255.425041,0.00021369,2]
[368039589,1751002258179,-255.425041,0.00021369,2]
[368039590,1751002258188,-1089.59,0.00021369,2]
[368039591,1751002258197,-895.257111,0.00021369,2]
[368039592,1751002258206,-2802.28,0.00021369,2]
[368039593,1751002258215,-460.0,0.00021369,2]
[368039594,1751002258224,-895.257111,0.00021369,2]
[368039595,1751002258234,-544.83,0.00021369,2]
[368039596,1751002258243,-1912.87,0.00021369,2]
[368039597,1751002258252,-421.05,0.00021369,2]
[368039598,1751002258261,-649.93,0.00021369,2]
[368039599,1751002258271,-475.68,0.00021369,2]
[368039600,1751002258280,-447.95191384,0.00021369,2]
[368039601,1751002258289,-460.0,0.00021369,2]
[368039602,1751002258298,-460.0,0.00021369,2]
[368039603,1751002258308,-460.0,0.00021369,2]
[368039604,1751002258317,-460.0,0.00021369,2]
[368039605,1751002258326,-1286.96,0.00021369,2]
[368039606,1751002258336,-681.06,0.00021369,2]
[368039607,1751002258345,-460.0,0.00021369,2]
[368039608,1751002258354,-875.84,0.00021369,2]
[368039609,1751002258363,-460.0,0.00021369,2]
[368039610,1751002258372,-5787.19,0.00021369,2]
[368039611,1751002258381,-2340.09,0.00021369,2]
[368039612,1751002258390,-1243.39,0.00021369,2]
[368039613,1751002258400,-678.37,0.00021369,2]
[368039614,1751002258409,-2750.13,0.00021369,2]
[368039615,1751002258419,-460.0,0.00021369,2]
[368039616,1751002258428,-480.43,0.00021369,2]
[368039617,1751002258438,-325.34502338,0.00021369,2]
[368039618,1751002258447,-460.0,0.00021369,2]
[368039619,1751002258456,-596.35,0.00021369,2]
[368039620,1751002258465,-522.52,0.00021369,2]
[368039621,1751002258475,-871.05,0.00021369,2]
[368039622,1751002258485,-1455.972287,0.00021369,2]
[368039623,1751002258494,-460.0,0.00021369,2]
[368039624,1751002258504,-1455.972287,0.00021369,2]
[368039625,1751002258513,-2533.04,0.00021369,2]
[368039626,1751002258523,-559.24,0.00021369,2]